[Event "EYTCC Open U12 2018"]
[Site "Bad Blankeburg"]
[Date "2018.07.13"]
[Round "3"]
[White "Kures, Michael"]
[Black "Mizrahi, Ido"]
[Result "0-1"]
[ECO "C28"]
[WhiteElo "1982"]
[BlackElo "1914"]
[Annotator "NA"]
[PlyCount "126"]
[EventDate "2018.07.12"]
[EventType "swiss"]
[EventCountry "GER"]
[SourceTitle "playchess.com"]
[Source "ChessBase"]
[SourceQuality "1"]
[TimeControl "40/5400+30:1800+30"]

1. e4 {[%emt 0:00:00]} e5 {[%emt 0:00:00]} 2. Nc3 {[%emt 0:00:00]} Nf6 {[%emt 0:00:33]} 3. Bc4 {[%emt 0:00:25]} Nc6 {[%emt 0:11:05]} 4. d3 {[%emt 0:01:08]} Na5 {[%emt 0:02:34]} 5. Nf3 {[%emt 0:00:49]} Nxc4 {[%emt 0:00:32]} 6. dxc4 {[%emt 0:00:12]} d6 {[%emt 0:00:06]} 7. h3 {[%emt 0:00:14]} Be7 {[%emt 0:00:13]} 8. Qe2 {[%emt 0:00:57]} h6 {[%emt 0:01:25]} 9. Be3 {[%emt 0:00:57]} c6 {[%emt 0:01:04]} 10. O-O-O {[%emt 0:00:41]} Qc7 {[%emt 0:00:23]} 11. g4 {[%emt 0:01:09]} Be6 {[%emt 0:03:35]} 12. g5 {[%emt 0:01:44]} Ng8 {[%emt 0:03:21]} 13. Rdg1 {[%emt 0:09:52]} O-O-O {[%emt 0:05:29]} 14. h4 {[%emt 0:01:24]} h5 {[%emt 0:03:22]} 15. Nd2 {[%emt 0:01:39]} g6 {[%emt 0:03:45]} 16. f4 {[%emt 0:05:07]} exf4 {[%emt 0:18:12]} 17. Bxf4 {[%emt 0:01:00]} Qa5 {[%emt 0:00:52]} 18. Rh2 {[%emt 0:04:50]} Bf8 {[%emt 0:03:37]} 19. e5 {[%emt 0:18:43]} d5 {[%emt 0:03:37]} 20. cxd5 {[%emt 0:08:47]} cxd5 {[%emt 0:11:28]} 21. Nb3 {[%emt 0:04:08]} Qb6 {[%emt 0:01:10]} 22. Rg3 {[%emt 0:15:15]} a6 {[%emt 0:07:36]} 23. Qd2 {[%emt 0:03:42]} Kb8 {[%emt 0:04:32]} 24. Be3 {[%emt 0:01:27]} Qc7 {[%emt 0:02:20]} 25. Na4 {[%emt 0:03:37]} Qc4 {[%emt 0:03:41]} 26. Qa5 {[%emt 0:04:09]} Rc8 {[%emt 0:04:34]} 27. Nbc5 {[%emt 0:07:56]} Qb5 {[%emt 0:02:09]} 28. Qxb5 {[%emt 0:03:06]} axb5 {[%emt 0:00:01]} 29. Nxe6 {[%emt 0:00:24]} fxe6 {[%emt 0:00:15]} 30. Nb6 {[%emt 0:00:38]} Rd8 {[%emt 0:00:26]} 31. c3 {[%emt 0:00:41]} Ne7 {[%emt 0:00:34]} 32. Rf3 {[%emt 0:00:24]} Nf5 {[%emt 0:00:32]} 33. Kc2 {[%emt 0:00:43]} Nxe3+ {[%emt 0:01:04]} 34. Rxe3 {[%emt 0:00:05]} Bc5 {[%emt 0:00:04]} 35. Rf3 {[%emt 0:00:23]} Bxb6 {[%emt 0:00:32]} 36. Rf6 {[%emt 0:00:14]} Rhg8 {[%emt 0:01:50]} 37. Rxe6 {[%emt 0:00:07]} Bc7 {[%emt 0:00:08]} 38. Rf2 {[%emt 0:01:00]} Rde8 {[%emt 0:01:03]} 39. Rxe8+ {[%emt 0:00:42]} Rxe8 {[%emt 0:00:02]} 40. Rf6 {[%emt 0:00:12]} Rg8 {[%emt 0:00:55]} 41. e6 {[%emt 0:30:09]} Bd8 {[%emt 0:30:58]} 42. Kd3 {[%emt 0:01:00]} Kc7 {[%emt 0:00:00]} 43. Rf7+ {[%emt 0:00:00]} Kd6 {[%emt 0:00:00]} 44. Rxb7 {[%emt 0:00:00]} Kxe6 {[%emt 0:00:00]} 45. Rxb5 {[%emt 0:00:00]} Bc7 {[%emt 0:00:00]} 46. a4 {[%emt 0:00:00]} Ra8 {[%emt 0:00:00]} 47. b3 {[%emt 0:00:00]} Ra6 {[%emt 0:00:00]} 48. Kd4 {[%emt 0:00:00]} Be5+ {[%emt 0:00:00]} 49. Kd3 {[%emt 0:00:00]} Rc6 {[%emt 0:00:00]} 50. c4 {[%emt 0:00:00]} dxc4+ {[%emt 0:00:00]} 51. bxc4 {[%emt 0:00:00]} Ra6 {[%emt 0:00:00]} 52. Ke4 {[%emt 0:00:00]} Bg3 {[%emt 0:01:39]} 53. Rb7 {[%emt 0:00:00]} Bxh4 {[%emt 0:01:51]} 54. Rg7 {[%emt 0:00:00]} Bxg5 {[%emt 0:00:25]} 55. Rxg6+ {[%emt 0:00:00]} Bf6 {[%emt 0:00:02]} 56. Kf3 {[%emt 0:00:00]} Rxa4 {[%emt 0:00:24]} 57. Kg2 {[%emt 0:00:00]} Rxc4 {[%emt 0:00:10]} 58. Kh1 {[%emt 0:00:00]} Kf5 {[%emt 0:00:48]} 59. Rg2 {[%emt 0:00:00]} Bg5 {[%emt 0:02:07]} 60. Rf2+ {[%emt 0:00:00]} Bf4 {[%emt 0:00:12]} 61. Rf1 {[%emt 0:00:00]} Kg4 {[%emt 0:00:30]} 62. Rg1+ {[%emt 0:00:00]} Bg3 {[%emt 0:00:11]} 63. Rg2 {[%emt 0:00:00]} Kf3 0-1

[Event "EYTCC Open U12 2018"]
[Site "Bad Blankeburg"]
[Date "2018.07.13"]
[Round "3"]
[White "Patole, Noam"]
[Black "Navumenka, Mikhei"]
[Result "1/2-1/2"]
[ECO "C06"]
[WhiteElo "1981"]
[BlackElo "1965"]
[Annotator "NA"]
[PlyCount "170"]
[EventDate "2018.07.12"]
[EventType "swiss"]
[EventCountry "GER"]
[SourceTitle "playchess.com"]
[Source "ChessBase"]
[SourceQuality "1"]
[TimeControl "40/5400+30:1800+30"]

1. e4 {[%emt 0:00:00]} e6 {[%emt 0:00:00]} 2. d4 {[%emt 0:00:08]} d5 {[%emt 0:00:00]} 3. Nd2 {[%emt 0:00:09]} Nf6 {[%emt 0:00:40]} 4. e5 {[%emt 0:00:40]} Nfd7 {[%emt 0:00:21]} 5. Bd3 {[%emt 0:00:25]} c5 {[%emt 0:00:07]} 6. c3 {[%emt 0:00:05]} Nc6 {[%emt 0:00:04]} 7. Ne2 {[%emt 0:00:10]} cxd4 {[%emt 0:00:07]} 8. cxd4 {[%emt 0:00:07]} f6 {[%emt 0:00:22]} 9. exf6 {[%emt 0:00:15]} Nxf6 {[%emt 0:00:16]} 10. O-O {[%emt 0:00:17]} Bd6 {[%emt 0:00:04]} 11. Nf3 {[%emt 0:00:10]} Qc7 {[%emt 0:00:03]} 12. Nc3 {[%emt 0:00:20]} a6 {[%emt 0:00:19]} 13. h3 {[%emt 0:01:13]} O-O {[%emt 0:01:20]} 14. Re1 {[%emt 0:00:11]} Bd7 {[%emt 0:01:28]} 15. Bd2 {[%emt 0:00:12]} Rae8 {[%emt 0:00:10]} 16. Rc1 {[%emt 0:00:09]} Qb8 {[%emt 0:01:27]} 17. a3 {[%emt 0:00:09]} Kh8 {[%emt 0:00:20]} 18. Bg5 {[%emt 0:14:31]} Bf4 {[%emt 0:16:06]} 19. Bxf4 {[%emt 0:00:58]} Qxf4 {[%emt 0:00:01]} 20. Ne2 {[%emt 0:00:36]} Qd6 {[%emt 0:00:46]} 21. Ng3 {[%emt 0:01:07]} e5 {[%emt 0:00:57]} 22. Rxc6 {[%emt 0:01:09]} Qxc6 {[%emt 0:02:54]} 23. dxe5 {[%emt 0:00:26]} Ng8 {[%emt 0:00:42]} 24. Ng5 {[%emt 0:00:21]} h6 {[%emt 0:01:37]} 25. Qh5 {[%emt 0:00:53]} Re7 {[%emt 0:01:57]} 26. Nf3 {[%emt 0:16:58]} Rf4 {[%emt 0:13:23]} 27. e6 {[%emt 0:11:29]} Rxe6 {[%emt 0:10:49]} 28. Ne5 {[%emt 0:05:02]} Qb6 {[%emt 0:08:52]} 29. Ng6+ {[%emt 0:02:52]} Rxg6 {[%emt 0:00:20]} 30. Qxg6 {[%emt 0:00:11]} Qxg6 {[%emt 0:02:13]} 31. Bxg6 {[%emt 0:00:15]} Rf6 {[%emt 0:00:32]} 32. Bh5 {[%emt 0:02:10]} Rb6 {[%emt 0:01:01]} 33. b4 {[%emt 0:00:47]} Nf6 {[%emt 0:00:20]} 34. Rd1 {[%emt 0:02:58]} Bb5 {[%emt 0:08:36]} 35. Bf7 {[%emt 0:00:48]} Bc4 {[%emt 0:00:30]} 36. Nf5 {[%emt 0:00:16]} a5 {[%emt 0:13:56]} 37. bxa5 {[%emt 0:02:01]} Ra6 {[%emt 0:03:09]} 38. Ne3 {[%emt 0:00:19]} Rxa5 {[%emt 0:01:59]} 39. Nxc4 {[%emt 0:01:02]} dxc4 {[%emt 0:00:42]} 40. Bxc4 {[%emt 0:00:29]} Rxa3 {[%emt 0:01:08]} 41. Rd8+ {[%emt 0:30:41]} Kh7 {[%emt 0:30:05]} 42. Rb8 {[%emt 0:02:00]} Rc3 {[%emt 0:01:38]} 43. Bb5 {[%emt 0:01:45]} Rc7 {[%emt 0:00:17]} 44. Rf8 {[%emt 0:00:41]} Nd5 {[%emt 0:01:32]} 45. h4 {[%emt 0:02:33]} g6 {[%emt 0:04:22]} 46. Rd8 {[%emt 0:02:02]} Ne7 {[%emt 0:00:17]} 47. g3 {[%emt 0:02:37]} Kg7 {[%emt 0:00:14]} 48. Kg2 {[%emt 0:00:21]} h5 {[%emt 0:00:50]} 49. Rd6 {[%emt 0:00:46]} Kf7 {[%emt 0:03:28]} 50. Bd3 {[%emt 0:00:55]} Rc6 {[%emt 0:00:22]} 51. Rd7 {[%emt 0:00:10]} b6 {[%emt 0:00:33]} 52. Be4 {[%emt 0:00:38]} Rf6 {[%emt 0:00:12]} 53. Rb7 {[%emt 0:00:14]} Ke8 {[%emt 0:01:14]} 54. Rb8+ {[%emt 0:00:07]} Kd7 {[%emt 0:00:08]} 55. Rb7+ {[%emt 0:00:11]} Ke8 {[%emt 0:00:54]} 56. f3 {[%emt 0:00:51]} Re6 {[%emt 0:00:53]} 57. Kf2 {[%emt 0:03:02]} Kd8 {[%emt 0:00:12]} 58. Ra7 {[%emt 0:00:39]} Nc8 {[%emt 0:00:00]} 59. Ra3 {[%emt 0:00:00]} b5 {[%emt 0:00:00]} 60. Ke3 {[%emt 0:00:00]} Nd6 {[%emt 0:00:00]} 61. Kd4 {[%emt 0:00:00]} Nxe4 {[%emt 0:00:00]} 62. fxe4 {[%emt 0:00:00]} Ke7 {[%emt 0:00:00]} 63. Ra7+ {[%emt 0:00:00]} Kf6 {[%emt 0:00:00]} 64. Rb7 {[%emt 0:00:00]} Rd6+ {[%emt 0:00:00]} 65. Ke3 {[%emt 0:00:00]} Ra6 {[%emt 0:00:00]} 66. Rxb5 {[%emt 0:00:00]} Rc6 {[%emt 0:00:00]} 67. Kd4 {[%emt 0:00:00]} Rd6+ {[%emt 0:00:00]} 68. Ke3 {[%emt 0:00:00]} Rc6 {[%emt 0:00:00]} 69. Kf4 {[%emt 0:00:00]} Rc3 {[%emt 0:00:00]} 70. Rb6+ {[%emt 0:00:00]} Kf7 {[%emt 0:00:00]} 71. e5 {[%emt 0:00:00]} Rc4+ {[%emt 0:00:00]} 72. Kg5 {[%emt 0:00:00]} Rg4+ {[%emt 0:00:32]} 73. Kh6 {[%emt 0:00:00]} Rxg3 {[%emt 0:00:55]} 74. Rf6+ {[%emt 0:00:00]} Ke7 {[%emt 0:00:11]} 75. Rxg6 {[%emt 0:00:00]} Re3 {[%emt 0:00:39]} 76. Rg5 {[%emt 0:00:00]} Re4 {[%emt 0:00:14]} 77. Kxh5 {[%emt 0:00:00]} Ke6 {[%emt 0:00:23]} 78. Rg4 {[%emt 0:00:00]} Rxe5+ {[%emt 0:00:24]} 79. Kh6 {[%emt 0:00:00]} Kf7 {[%emt 0:00:20]} 80. Rg5 {[%emt 0:00:00]} Re6+ {[%emt 0:00:51]} 81. Kh7 {[%emt 0:00:00]} Rf6 {[%emt 0:00:08]} 82. h5 {[%emt 0:00:00]} Rf4 {[%emt 0:00:20]} 83. h6 {[%emt 0:00:00]} Rf3 {[%emt 0:00:12]} 84. Ra5 {[%emt 0:00:00]} Rf2 {[%emt 0:00:11]} 85. Ra7+ {[%emt 0:00:00]} Ke8 1/2-1/2

[Event "EYTCC Open U12 2018"]
[Site "Bad Blankeburg"]
[Date "2018.07.13"]
[Round "3"]
[White "Hlavina, Matous"]
[Black "Aizenberg, Benny"]
[Result "0-1"]
[ECO "B40"]
[WhiteElo "1776"]
[BlackElo "1941"]
[Annotator "NA"]
[PlyCount "86"]
[EventDate "2018.07.12"]
[EventType "swiss"]
[EventCountry "GER"]
[SourceTitle "playchess.com"]
[Source "ChessBase"]
[SourceQuality "1"]
[TimeControl "40/5400+30:1800+30"]

1. e4 {[%emt 0:00:00]} c5 {[%emt 0:00:00]} 2. Nf3 {[%emt 0:00:00]} e6 {[%emt 0:00:00]} 3. d4 {[%emt 0:00:15]} cxd4 {[%emt 0:00:00]} 4. Nxd4 {[%emt 0:00:04]} Nf6 {[%emt 0:00:00]} 5. Nc3 {[%emt 0:00:17]} Nc6 {[%emt 0:00:00]} 6. Ndb5 {[%emt 0:00:08]} Bb4 {[%emt 0:00:00]} 7. a3 {[%emt 0:00:58]} Bxc3+ {[%emt 0:00:00]} 8. Nxc3 {[%emt 0:00:28]} d5 {[%emt 0:00:07]} 9. exd5 {[%emt 0:00:38]} exd5 {[%emt 0:00:03]} 10. Bd3 {[%emt 0:01:13]} O-O {[%emt 0:00:16]} 11. O-O {[%emt 0:02:41]} d4 {[%emt 0:00:46]} 12. Ne4 {[%emt 0:01:42]} Nxe4 {[%emt 0:07:34]} 13. Bxe4 {[%emt 0:00:57]} Re8 {[%emt 0:01:04]} 14. Bd3 {[%emt 0:01:51]} Ne5 {[%emt 0:00:32]} 15. Be2 {[%emt 0:06:33]} Bf5 {[%emt 0:01:53]} 16. f4 {[%emt 0:01:55]} Nc6 {[%emt 0:02:18]} 17. Bd3 {[%emt 0:02:02]} Bxd3 {[%emt 0:03:54]} 18. Qxd3 {[%emt 0:02:44]} Rc8 {[%emt 0:00:59]} 19. Bd2 {[%emt 0:01:45]} Qb6 {[%emt 0:16:57]} 20. Rab1 {[%emt 0:09:47]} Ne7 {[%emt 0:02:32]} 21. Rfe1 {[%emt 0:07:06]} Nd5 {[%emt 0:00:48]} 22. Rxe8+ {[%emt 0:07:41]} Rxe8 {[%emt 0:00:05]} 23. Kf1 {[%emt 0:04:58]} g6 {[%emt 0:11:37]} 24. a4 {[%emt 0:17:21]} Qf6 {[%emt 0:10:03]} 25. Qb5 {[%emt 0:06:59]} Ne3+ {[%emt 0:01:15]} 26. Bxe3 {[%emt 0:01:22]} Rxe3 {[%emt 0:00:06]} 27. Qxb7 {[%emt 0:00:57]} Qxf4+ {[%emt 0:00:18]} 28. Kg1 {[%emt 0:00:46]} Re2 {[%emt 0:01:24]} 29. Rf1 {[%emt 0:01:38]} Qe3+ {[%emt 0:00:03]} 30. Kh1 {[%emt 0:00:23]} Qf2 {[%emt 0:00:58]} 31. Qf3 {[%emt 0:02:01]} Qxf3 {[%emt 0:00:08]} 32. gxf3 {[%emt 0:00:21]} Rxc2 {[%emt 0:00:06]} 33. Rd1 {[%emt 0:01:11]} Rxb2 {[%emt 0:00:55]} 34. Rxd4 {[%emt 0:00:36]} Ra2 {[%emt 0:00:05]} 35. Re4 {[%emt 0:01:44]} Kg7 {[%emt 0:01:23]} 36. Kg1 {[%emt 0:00:49]} a5 {[%emt 0:03:26]} 37. h4 {[%emt 0:02:02]} f5 {[%emt 0:04:47]} 38. Rc4 {[%emt 0:02:01]} Kh6 {[%emt 0:00:30]} 39. Rf4 {[%emt 0:03:57]} Kh5 {[%emt 0:01:16]} 40. Kh1 {[%emt 0:02:56]} Rb2 {[%emt 0:01:27]} 41. Rc4 {[%emt 0:36:40]} Rb4 {[%emt 0:30:07]} 42. Rc7 {[%emt 0:00:37]} Kxh4 {[%emt 0:01:19]} 43. Rxh7+ {[%emt 0:00:31]} Kg3 {[%emt 0:00:05]} 0-1

[Event "EYTCC Open U12 2018"]
[Site "Bad Blankeburg"]
[Date "2018.07.13"]
[Round "3"]
[White "Klachkou, Platon"]
[Black "Razafindratsima, Timothe"]
[Result "1/2-1/2"]
[ECO "D90"]
[WhiteElo "1576"]
[BlackElo "1975"]
[Annotator "NA"]
[PlyCount "115"]
[EventDate "2018.07.12"]
[EventType "swiss"]
[EventCountry "GER"]
[SourceTitle "playchess.com"]
[Source "ChessBase"]
[SourceQuality "1"]
[TimeControl "40/5400+30:1800+30"]

1. d4 {[%emt 0:00:00]} Nf6 {[%emt 0:00:00]} 2. c4 {[%emt 0:00:00]} g6 {[%emt 0:00:00]} 3. Nc3 {[%emt 0:00:00]} d5 {[%emt 0:00:00]} 4. Nf3 {[%emt 0:00:31]} Bg7 {[%emt 0:00:00]} 5. h3 {[%emt 0:00:41]} O-O {[%emt 0:01:09]} 6. Bf4 {[%emt 0:00:12]} c5 {[%emt 0:01:42]} 7. e3 {[%emt 0:03:16]} Nc6 {[%emt 0:02:12]} 8. Be2 {[%emt 0:04:15]} cxd4 {[%emt 0:26:02]} 9. exd4 {[%emt 0:00:23]} b6 {[%emt 0:13:48]} 10. O-O {[%emt 0:00:46]} Bb7 {[%emt 0:00:08]} 11. Rc1 {[%emt 0:02:16]} Rc8 {[%emt 0:00:35]} 12. b3 {[%emt 0:05:43]} Ne4 {[%emt 0:03:49]} 13. Be3 {[%emt 0:09:55]} e6 {[%emt 0:05:53]} 14. a3 {[%emt 0:02:42]} Ne7 {[%emt 0:01:53]} 15. Nxe4 {[%emt 0:10:23]} dxe4 {[%emt 0:00:08]} 16. Ne1 {[%emt 0:01:02]} Nf5 {[%emt 0:03:43]} 17. Nc2 {[%emt 0:01:19]} Qd6 {[%emt 0:01:53]} 18. Qd2 {[%emt 0:04:37]} Rfd8 {[%emt 0:01:51]} 19. Rfd1 {[%emt 0:00:29]} Nxe3 {[%emt 0:06:48]} 20. fxe3 {[%emt 0:02:57]} Bf8 {[%emt 0:11:13]} 21. b4 {[%emt 0:02:38]} Qg3 {[%emt 0:01:11]} 22. Qe1 {[%emt 0:01:17]} Qg5 {[%emt 0:00:13]} 23. h4 {[%emt 0:02:36]} Qh6 {[%emt 0:00:44]} 24. Qf2 {[%emt 0:02:17]} Bd6 {[%emt 0:01:44]} 25. Rf1 {[%emt 0:01:54]} f5 {[%emt 0:01:24]} 26. c5 {[%emt 0:00:33]} Be7 {[%emt 0:00:16]} 27. g3 {[%emt 0:00:53]} g5 {[%emt 0:01:06]} 28. hxg5 {[%emt 0:02:07]} Bxg5 {[%emt 0:00:50]} 29. Rcd1 {[%emt 0:02:44]} Bd5 {[%emt 0:00:20]} 30. Kg2 {[%emt 0:01:37]} Rd7 {[%emt 0:01:01]} 31. Rh1 {[%emt 0:00:25]} Qf6 {[%emt 0:00:17]} 32. Rdf1 {[%emt 0:02:26]} Rg7 {[%emt 0:00:26]} 33. Kg1 {[%emt 0:01:55]} Bh4 {[%emt 0:01:15]} 34. Rh3 {[%emt 0:00:53]} Kh8 {[%emt 0:02:12]} 35. Kh2 {[%emt 0:00:48]} Bg5 {[%emt 0:05:00]} 36. Ne1 {[%emt 0:00:43]} Rf8 {[%emt 0:01:32]} 37. Ng2 {[%emt 0:00:30]} e5 {[%emt 0:00:24]} 38. dxe5 {[%emt 0:05:34]} Qxe5 {[%emt 0:00:01]} 39. Nf4 {[%emt 0:00:16]} Bxf4 {[%emt 0:00:35]} 40. Qxf4 {[%emt 0:03:11]} Qxf4 {[%emt 0:00:16]} 41. Rxf4 {[%emt 0:30:42]} bxc5 {[%emt 0:30:15]} 42. bxc5 {[%emt 0:01:55]} Rc7 {[%emt 0:01:41]} 43. Bg4 {[%emt 0:02:26]} Be6 {[%emt 0:01:58]} 44. Rh6 {[%emt 0:00:39]} Bc8 {[%emt 0:01:08]} 45. Bh3 {[%emt 0:07:29]} Rxc5 {[%emt 0:01:10]} 46. g4 {[%emt 0:02:02]} Rc2+ {[%emt 0:00:00]} 47. Bg2 {[%emt 0:00:00]} Rg8 {[%emt 0:00:00]} 48. Kh1 {[%emt 0:00:00]} Rg6 {[%emt 0:00:00]} 49. Rh5 {[%emt 0:00:00]} Rc1+ {[%emt 0:00:00]} 50. Kh2 {[%emt 0:00:00]} Rxg4 {[%emt 0:00:00]} 51. Rxg4 {[%emt 0:00:00]} fxg4 {[%emt 0:00:00]} 52. Bxe4 {[%emt 0:00:00]} Rc7 {[%emt 0:00:00]} 53. Kg3 {[%emt 0:00:00]} Re7 {[%emt 0:01:07]} 54. Kf4 {[%emt 0:00:00]} Rf7+ {[%emt 0:00:11]} 55. Kg3 {[%emt 0:00:00]} Re7 {[%emt 0:01:37]} 56. Kf4 {[%emt 0:00:00]} Rf7+ {[%emt 0:00:21]} 57. Kg3 {[%emt 0:00:00]} Re7 {[%emt 0:01:48]} 58. Kf4 {[%emt 0:00:00]} 1/2-1/2

[Event "EYTCC Open U12 2018"]
[Site "Bad Blankeburg"]
[Date "2018.07.14"]
[Round "4"]
[White "Stalmach, Richard"]
[Black "Bui, Bao Anh Le"]
[Result "0-1"]
[ECO "D30"]
[WhiteElo "2063"]
[BlackElo "1883"]
[Annotator "NA"]
[PlyCount "80"]
[EventDate "2018.07.12"]
[EventType "swiss"]
[EventCountry "GER"]
[SourceTitle "playchess.com"]
[Source "ChessBase"]
[SourceQuality "1"]
[TimeControl "40/5400+30:1800+30"]

1. d4 {[%emt 0:00:00]} d5 {[%emt 0:00:00]} 2. c4 {[%emt 0:00:00]} e6 {[%emt 0:00:07]} 3. Nf3 {[%emt 0:00:00]} c6 {[%emt 0:00:05]} 4. e3 {[%emt 0:00:00]} Nf6 {[%emt 0:00:08]} 5. Bd3 {[%emt 0:00:00]} Nbd7 {[%emt 0:00:11]} 6. O-O {[%emt 0:00:42]} Be7 {[%emt 0:04:05]} 7. Nc3 {[%emt 0:03:20]} b6 {[%emt 0:01:22]} 8. e4 {[%emt 0:00:36]} dxe4 {[%emt 0:00:57]} 9. Nxe4 {[%emt 0:00:05]} Bb7 {[%emt 0:02:04]} 10. Re1 {[%emt 0:03:39]} O-O {[%emt 0:07:10]} 11. b3 {[%emt 0:06:00]} c5 {[%emt 0:14:31]} 12. Bb2 {[%emt 0:02:17]} cxd4 {[%emt 0:08:08]} 13. Nxd4 {[%emt 0:01:49]} Nc5 {[%emt 0:03:06]} 14. Nxf6+ $11 {[%emt 0:22:25]} Bxf6 {[%emt 0:00:49]} 15. Bc2 {[%emt 0:00:50]} g6 {[%emt 0:20:02]} 16. Qg4 {[%emt 0:15:01]} h5 {[%emt 0:22:08]} 17. Qf4 {[%emt 0:17:21]} e5 {[%emt 0:08:08]} 18. Rxe5 {[%emt 0:01:25]} Bxe5 {[%emt 0:00:05]} 19. Qxe5 {[%emt 0:00:04]} Nd7 {[%emt 0:00:08]} 20. Qd6 {[%emt 0:08:38]} Qg5 {[%emt 0:03:51]} 21. g3 {[%emt 0:05:43]} Rad8 {[%emt 0:00:13]} 22. Ne6 {[%emt 0:07:14]} fxe6 {[%emt 0:01:25]} 23. Qxe6+ {[%emt 0:00:01]} Kh7 {[%emt 0:00:14]} 24. h4 {[%emt 0:00:12]} Nc5 {[%emt 0:00:51]} 25. Qe1 {[%emt 0:00:21]} Nd3 {[%emt 0:01:31]} 26. Bxd3 {[%emt 0:03:33]} Qc5 {[%emt 0:00:01]} 27. Rd1 {[%emt 0:01:23]} Rde8 {[%emt 0:00:51]} 28. Qf1 {[%emt 0:00:15]} Qc6 {[%emt 0:00:31]} 29. Kh2 {[%emt 0:00:48]} Qf3 {[%emt 0:01:09]} 30. Rd2 {[%emt 0:00:24]} Re1 {[%emt 0:00:11]} 31. Bxg6+ {[%emt 0:00:24]} Kh6 {[%emt 0:00:35]} 32. Be4 {[%emt 0:00:42]} Bxe4 {[%emt 0:00:41]} 33. Rd6+ {[%emt 0:00:09]} Kh7 {[%emt 0:00:33]} 34. Rd7+ {[%emt 0:00:01]} Kg6 {[%emt 0:00:13]} 35. Rd6+ {[%emt 0:00:30]} Kf5 {[%emt 0:00:30]} 36. Qh3+ {[%emt 0:00:18]} Qg4 {[%emt 0:00:05]} 37. f3 {[%emt 0:01:41]} Re2+ {[%emt 0:00:16]} 38. Kg1 {[%emt 0:00:08]} Qxh3 {[%emt 0:00:12]} 39. fxe4+ {[%emt 0:00:21]} Kg4 {[%emt 0:00:20]} 40. Rg6+ {[%emt 0:00:23]} Kf3 {[%emt 0:00:11]} 0-1

[Event "EYTCC Open U12 2018"]
[Site "Bad Blankeburg"]
[Date "2018.07.14"]
[Round "4"]
[White "Schubert, Nikita"]
[Black "Hlavina, Matous"]
[Result "0-1"]
[ECO "D77"]
[WhiteElo "1984"]
[BlackElo "1776"]
[Annotator "NA"]
[PlyCount "122"]
[EventDate "2018.07.12"]
[EventType "swiss"]
[EventCountry "GER"]
[SourceTitle "playchess.com"]
[Source "ChessBase"]
[SourceQuality "1"]
[TimeControl "40/5400+30:1800+30"]

1. d4 {[%emt 0:00:00]} Nf6 {[%emt 0:00:00]} 2. Nf3 {[%emt 0:00:10]} g6 {[%emt 0:00:27]} 3. c4 {[%emt 0:00:23]} d5 {[%emt 0:00:51]} 4. g3 {[%emt 0:01:06]} Bg7 {[%emt 0:00:54]} 5. Bg2 {[%emt 0:00:28]} O-O {[%emt 0:01:18]} 6. O-O {[%emt 0:00:33]} dxc4 7. Na3 {[%emt 0:04:34]} c3 {[%emt 0:04:32]} 8. bxc3 {[%emt 0:03:44]} c5 {[%emt 0:01:16]} 9. Bb2 {[%emt 0:10:52]} Nc6 {[%emt 0:11:44]} 10. Re1 {[%emt 0:09:20]} Qc7 {[%emt 0:09:46]} 11. e3 {[%emt 0:13:03]} Rd8 {[%emt 0:04:36]} 12. Qe2 {[%emt 0:01:26]} Bg4 {[%emt 0:09:38]} 13. h3 {[%emt 0:01:00]} Bxf3 {[%emt 0:10:51]} 14. Bxf3 {[%emt 0:05:10]} e5 {[%emt 0:01:27]} 15. Bg2 {[%emt 0:10:48]} a6 {[%emt 0:04:46]} 16. Rac1 {[%emt 0:04:11]} Rac8 {[%emt 0:08:02]} 17. Bxc6 {[%emt 0:10:46]} Qxc6 {[%emt 0:00:43]} 18. dxe5 {[%emt 0:01:01]} Ne4 {[%emt 0:00:42]} 19. Nc4 {[%emt 0:04:00]} b5 {[%emt 0:02:07]} 20. Nd6 {[%emt 0:01:05]} Nxd6 {[%emt 0:01:54]} 21. exd6 {[%emt 0:00:09]} c4 {[%emt 0:04:27]} 22. Ba3 {[%emt 0:02:59]} Bf8 {[%emt 0:01:24]} 23. Red1 {[%emt 0:01:53]} Rd7 {[%emt 0:02:29]} 24. e4 {[%emt 0:04:47]} Bxd6 {[%emt 0:01:28]} 25. Bxd6 {[%emt 0:00:28]} Rxd6 {[%emt 0:00:06]} 26. Rxd6 {[%emt 0:00:36]} Qxd6 {[%emt 0:00:09]} 27. Rd1 {[%emt 0:00:39]} Qe5 {[%emt 0:01:47]} 28. Qe3 {[%emt 0:01:24]} Re8 {[%emt 0:03:30]} 29. Rd4 {[%emt 0:00:58]} Qe6 {[%emt 0:00:58]} 30. f4 {[%emt 0:01:42]} Qxh3 {[%emt 0:01:07]} 31. Rd6 {[%emt 0:01:20]} Re6 {[%emt 0:03:04]} 32. Rd8+ {[%emt 0:01:15]} Kg7 {[%emt 0:00:30]} 33. Qd4+ {[%emt 0:00:51]} Kh6 {[%emt 0:00:32]} 34. Qe3 {[%emt 0:01:01]} Qf5 {[%emt 0:03:04]} 35. Rd4 {[%emt 0:00:49]} Kg7 {[%emt 0:00:54]} 36. Kg2 {[%emt 0:01:01]} Re8 {[%emt 0:04:38]} 37. Qf3 {[%emt 0:00:50]} Qc5 {[%emt 0:00:57]} 38. f5 {[%emt 0:01:07]} Qe5 {[%emt 0:01:01]} 39. g4 {[%emt 0:00:51]} g5 {[%emt 0:01:07]} 40. Kh3 {[%emt 0:00:50]} Re7 {[%emt 0:00:33]} 41. Kg2 {[%emt 0:08:49]} b4 {[%emt 0:10:00]} 42. Rxc4 {[%emt 0:09:26]} bxc3 {[%emt 0:00:29]} 43. Rxc3 {[%emt 0:00:31]} f6 {[%emt 0:02:03]} 44. Re3 {[%emt 0:02:10]} Rc7 {[%emt 0:01:45]} 45. Qe2 {[%emt 0:04:19]} a5 {[%emt 0:03:05]} 46. Rd3 {[%emt 0:03:22]} Re7 {[%emt 0:00:52]} 47. Re3 {[%emt 0:00:55]} a4 {[%emt 0:02:52]} 48. Qf3 {[%emt 0:01:55]} Rb7 {[%emt 0:00:58]} 49. Re2 {[%emt 0:01:35]} Rb4 {[%emt 0:02:13]} 50. Qd3 {[%emt 0:01:10]} Rd4 {[%emt 0:01:22]} 51. Qf3 {[%emt 0:00:28]} Rc4 {[%emt 0:02:33]} 52. Kh3 {[%emt 0:00:46]} a3 {[%emt 0:01:53]} 53. Kg2 {[%emt 0:00:12]} Rc3 {[%emt 0:00:27]} 54. Re3 {[%emt 0:00:01]} Rc2+ {[%emt 0:00:32]} 55. Re2 {[%emt 0:00:05]} Qb2 {[%emt 0:01:30]} 56. Rxc2 {[%emt 0:00:57]} Qxc2+ {[%emt 0:00:06]} 57. Qf2 {[%emt 0:00:31]} Qxe4+ {[%emt 0:00:07]} 58. Kh3 {[%emt 0:01:02]} Qh1+ {[%emt 0:01:17]} 59. Kg3 {[%emt 0:00:17]} Qh4+ {[%emt 0:00:19]} 60. Kf3 {[%emt 0:00:06]} Qxf2+ {[%emt 0:00:40]} 61. Kxf2 {[%emt 0:00:12]} h5 {[%emt 0:00:07]} 0-1

[Event "EYTCC Open U12 2018"]
[Site "Bad Blankeburg"]
[Date "2018.07.14"]
[Round "4"]
[White "Gokcek, Kursat Bugra"]
[Black "Hagner, Bennet"]
[Result "1/2-1/2"]
[ECO "B13"]
[WhiteElo "1974"]
[BlackElo "1947"]
[Annotator "NA"]
[PlyCount "97"]
[EventDate "2018.07.12"]
[EventType "swiss"]
[EventCountry "GER"]
[SourceTitle "playchess.com"]
[Source "ChessBase"]
[SourceQuality "1"]
[TimeControl "40/5400+30:1800+30"]

1. e4 c6 2. d4 d5 3. exd5 cxd5 4. Bd3 Nc6 5. c3 Nf6 6. Bf4 Bg4 7. Qb3 Qd7 8. Nd2 e6 9. Ngf3 Bd6 10. Bg5 Bxf3 11. Nxf3 h6 12. Bh4 O-O-O 13. Bg3 Rhe8 14. O-O Nh5 15. Bxd6 {[%emt 0:40:32]} Qxd6 16. Bb5 f6 17. Rfe1 g5 18. Rac1 Nf4 19. Bf1 g4 20. Nh4 Rg8 21. g3 Nh3+ 22. Bxh3 gxh3 23. Kh1 Rg4 24. Nf3 Kb8 25. Qb5 Rdg8 26. Qf1 e5 27. Rcd1 e4 28. Ng1 Ne7 29. Qxh3 Nf5 30. Ne2 R4g5 31. Rg1 e3 32. f3 Qd7 33. g4 Nd6 34. Qxh6 Qe7 35. Rg3 Nf7 36. Qh3 Nd6 37. Qh6 Nc4 38. h4 R5g6 39. Qf4+ Ka8 40. b3 Nb2 41. Rf1 Nd3 42. Qf5 Nf2+ 43. Kg2 Qd6 44. Nf4 R6g7 45. Re1 Qa6 46. a4 Qb6 47. Rxe3 Nd1 48. Rd3 Qxb3 49. Kh2 1/2-1/2